bitfinex/quotes_SOLUSD_20250420
["timestamp","ask_amount","ask_price","bid_price","bid_amount"]
[1745110580086,18.71264886,140.62,140.58,33.60020444]
[1745110581771,25.82405665,140.62,140.58,33.60020444]
[1745110582767,0.063,140.62,140.59,7.60020444]
[1745110582977,0.063,140.62,140.6,7.60020444]
[1745110583282,0.063,140.62,140.61,7.60020444]
[1745110583491,0.063,140.62,140.6,7.60020444]
[1745110584092,0.063,140.62,140.6,14.00117353]
[1745110584305,0.063,140.62,140.61,7.60020444]
[1745110585507,0.063,140.62,140.61,14.00088717]
[1745110586116,0.063,140.62,140.61,95.30088717]
[1745110587601,0.063,140.62,140.61,88.90020444]
[1745110590007,0.063,140.62,140.61,81.3]
[1745110594486,0.063,140.62,140.61,88.90020444]
[1745110596002,0.063,140.62,140.61,81.3]
[1745110598604,0.063,140.62,140.61,113.70068273]
[1745110600707,0.063,140.62,140.61,121.30088717]
[1745110605114,0.063,140.62,140.61,107.3]
[1745110623834,0.063,140.62,140.61,113.70068273]
[1745110624337,0.063,140.62,140.61,107.3]
[1745110624550,0.063,140.62,140.61,81.3]
[1745110629256,0.063,140.62,140.61,88.90020444]
[1745110630763,0.063,140.62,140.61,95.30088717]
[1745110631462,0.063,140.62,140.61,121.30088717]
[1745110631753,0.063,140.66,140.63,26.0]
[1745110631943,0.063,140.66,140.65,33.60020444]
[1745110632157,0.063,140.66,140.65,7.60020444]
[1745110632661,0.063,140.66,140.65,13.99906686]
[1745110635247,0.063,140.66,140.65,17.54448878]
[1745110635870,0.063,140.66,140.65,98.84448878]
[1745110636470,0.063,140.66,140.65,100.37088878]
[1745110639472,0.063,140.68,140.65,100.37088878]
[1745110639676,0.063,140.72,140.71,26.0]
[1745110639854,0.063,140.72,140.71,114.90020444]
[1745110640055,0.063,140.72,140.71,121.29633833]
[1745110651164,15.45600444,140.72,140.64,5.75195199]
[1745110651375,18.64964886,140.64,140.59,81.363]
[1745110651575,7.60020444,140.63,140.59,81.363]
[1745110652064,26.2498533,140.64,140.59,81.363]
[1745110652264,33.36038868,140.64,140.59,81.363]
[1745110652475,26.2498533,140.6,140.59,0.063]
[1745110654194,33.36222883,140.6,140.59,0.063]
[1745110655291,37.62505106,140.6,140.59,0.063]
[1745110664182,7.11237553,140.6,140.59,0.063]
[1745110664567,7.11203937,140.61,140.59,0.063]
[1745110671784,11.86302667,140.6,140.59,0.063]
[1745110672088,30.51267553,140.6,140.59,0.063]
[1745110672493,37.62505106,140.6,140.59,0.063]
[1745110677196,33.353345,140.6,140.59,0.063]
[1745110681313,41.079445,140.6,140.59,0.063]
[1745110682183,18.64964886,140.59,140.53,0.063]
[1745110682387,7.59132061,140.54,140.53,0.063]
[1745110683992,14.70673259,140.54,140.53,0.063]
[1745110684192,7.11541198,140.54,140.53,0.063]
[1745110691816,14.70673259,140.54,140.53,0.063]
[1745110694008,25.76506084,140.54,140.53,0.063]
[1745110697120,17.78355147,140.58,140.53,0.063]
[1745110697298,26.24096947,140.57,140.53,0.063]
[1745110698121,7.59132061,140.56,140.53,0.063]
[1745110698420,25.50712576,140.6,140.53,7.65432061]
[1745110698625,33.35385089,140.59,140.54,7.59132061]
[1745110698917,25.76253028,140.59,140.54,7.59132061]
[1745110699313,25.76253028,140.59,140.54,33.59132061]
[1745110699625,33.35385089,140.59,140.54,33.59132061]
[1745110700626,18.64964886,140.57,140.54,26.0]
[1745110700798,7.59132061,140.56,140.54,26.0]
[1745110701722,14.70612696,140.56,140.54,26.0]
[1745110701902,14.70612696,140.56,140.53,0.063]
[1745110705015,7.59132061,140.55,140.53,0.063]
[1745110706319,14.70612696,140.56,140.53,0.063]
[1745110709305,7.11480635,140.56,140.53,0.063]
[1745110709829,14.70612696,140.56,140.53,0.063]
[1745110712421,7.11480635,140.56,140.53,0.063]
[1745110712925,14.70612696,140.56,140.53,0.063]
[1745110713534,7.11480635,140.56,140.53,0.063]
[1745110713829,14.70612696,140.56,140.53,0.063]
[1745110715232,18.64964886,140.56,140.53,0.063]
[1745110717236,7.59132061,140.58,140.53,0.063]
[1745110717423,18.64964886,140.57,140.53,0.063]
[1745110720616,25.76361361,140.57,140.53,0.063]
[1745110721641,18.64964886,140.57,140.53,0.063]
[1745110724745,7.59132061,140.58,140.53,0.063]
[1745110726440,33.35406648,140.59,140.53,7.65432061]
[1745110726645,18.64964886,140.58,140.53,7.65432061]
[1745110727749,18.64964886,140.58,140.54,6.40387078]
[1745110731652,25.76310937,140.58,140.54,6.40387078]
[1745110732149,25.76310937,140.58,140.53,40.05849768]
[1745110732350,33.35442998,140.58,140.53,32.46717707]
[1745110732530,7.59132061,140.57,140.53,26.063]
[1745110732925,7.59132061,140.55,140.53,0.063]
[1745110733747,14.70660025,140.55,140.53,0.063]
[1745110738862,7.11527964,140.55,140.53,0.063]
[1745110740658,14.70660025,140.55,140.53,0.063]
[1745110740843,26.24096947,140.54,140.53,0.063]
[1745110741042,32.88106947,140.54,140.53,0.063]
[1745110742860,39.99648145,140.54,140.53,0.063]
[1745110744057,26.0,140.52,140.44,0.03]
[1745110744265,38.30512574,140.29,140.13,50.71121138]
[1745110744564,1.0,140.18,140.13,50.71121138]
[1745110744752,86.18019534,140.18,140.13,50.71121138]
[1745110744949,19.64964886,140.14,140.13,27.44552657]
[1745110745138,27.24096947,140.14,140.13,27.44552657]
[1745110745653,19.64964886,140.13,140.12,139.46671633]
[1745110745948,27.24096947,140.13,140.12,139.46671633]
[1745110746160,18.64964886,140.05,139.99,279.07134972]
[1745110746337,19.64964886,140.05,140.0,16.12]
[1745110746537,1.0,140.04,140.0,16.12]
[1745110746843,1.0,140.05,140.02,7.59132061]
[1745110747044,14.65462524,140.04,140.02,27.6]
[1745110747250,1.0,140.08,140.03,19.10055339]
[1745110747452,1.0,140.07,140.03,16.12]
[1745110747649,1.0,140.07,140.02,46.70055339]
[1745110747953,1.0,140.09,140.05,19.10055339]
[1745110748136,43.52236249,140.08,140.05,19.10055339]
[1745110748336,44.52236249,140.08,140.06,16.14]
[1745110748934,44.52236249,140.08,140.05,19.10055339]
[1745110749134,43.52236249,140.08,140.06,16.14]
[1745110749567,43.52236249,140.08,140.07,19.10055339]
[1745110749865,43.52236249,140.08,140.07,16.14]
[1745110750053,43.52236249,140.08,140.07,35.24055339]
[1745110750253,65.10982928,140.08,140.07,16.14]
[1745110750665,43.52236249,140.08,140.07,16.14]
[1745110751259,43.52236249,140.08,140.07,35.24055339]
[1745110751555,21.58746679,140.09,140.07,35.24055339]
[1745110751756,21.58746679,140.09,140.08,19.10055339]
[1745110752244,1.0,140.1,140.08,19.10055339]
[1745110752767,1.0,140.1,140.08,35.24055339]
[1745110753249,1.0,140.11,140.09,19.10055339]
[1745110754155,1.0,140.1,140.09,19.10055339]
[1745110754356,1.0,140.1,140.08,35.24055339]
[1745110755750,1.0,140.09,140.08,16.14]
[1745110756761,1.0,140.09,140.08,35.24055339]
[1745110757670,1.0,140.09,140.08,19.10055339]
[1745110757965,10.68222036,140.09,140.08,35.26055339]
[1745110758542,11.68222036,140.1,140.08,35.26055339]
[1745110758743,11.68222036,140.1,140.09,19.10055339]
[1745110759562,10.68222036,140.1,140.09,19.10055339]
[1745110761153,1.0,140.11,140.08,35.26055339]
[1745110761464,1.0,140.11,140.09,16.16]
[1745110762363,1.0,140.1,140.09,16.16]
[1745110762943,5.77281316,140.09,140.08,16.45006789]
[1745110763167,6.77281316,140.09,140.08,32.61006789]
[1745110763377,6.77281316,140.09,140.08,16.16]
[1745110763541,17.39533505,140.09,140.08,16.16]
[1745110764367,16.39533505,140.09,140.08,16.16]
[1745110764866,16.39533505,140.09,140.07,6.97464489]
[1745110765065,16.39533505,140.09,140.08,16.16]
[1745110765268,16.39533505,140.09,140.08,35.26055339]
[1745110765671,5.77281316,140.09,140.08,35.26055339]
[1745110766050,6.77281316,140.09,140.08,35.26055339]
[1745110766661,5.77281316,140.09,140.08,35.26055339]
[1745110766971,5.77281316,140.09,140.08,87.49988462]
[1745110767278,5.77281316,140.09,140.08,73.1647732]
[1745110767469,5.77281316,140.09,140.08,54.09299768]
[1745110768273,1.0,140.1,140.08,61.23177552]
[1745110769072,3.91703094,140.09,140.08,61.23177552]
[1745110771169,3.91703094,140.09,140.08,33.13877784]
[1745110771367,3.91703094,140.09,140.08,49.29877784]
[1745110771550,3.91703094,140.09,140.08,61.23177552]
[1745110773775,3.91703094,140.09,140.08,49.29877784]
[1745110773978,3.91703094,140.09,140.08,61.23177552]
[1745110775678,18.64964886,140.14,140.08,61.23177552]
[1745110775977,1.86973394,140.13,140.08,61.23177552]
[1745110776278,1.86973394,140.13,140.08,35.23177552]
[1745110776772,1.86973394,140.13,140.08,23.29877784]
[1745110777077,1.86973394,140.13,140.08,35.23177552]
[1745110777779,18.64964886,140.12,140.08,35.23177552]
[1745110779586,18.64964886,140.12,140.08,19.07177552]
[1745110785189,18.64964886,140.12,140.08,35.19177552]
[1745110786584,18.64964886,140.12,140.08,19.07177552]
[1745110786886,18.64964886,140.12,140.08,35.19177552]
[1745110789194,18.64964886,140.12,140.08,23.25877784]
[1745110790298,18.64964886,140.14,140.08,23.25877784]
[1745110791378,18.64964886,140.12,140.08,23.25877784]
[1745110793298,18.64964886,140.12,140.08,49.76025765]
[1745110794596,1.86973394,140.13,140.08,49.76025765]
[1745110795295,1.86973394,140.13,140.1,7.64025765]
[1745110795699,1.86973394,140.13,140.09,14.7785259]
[1745110798703,11.11844438,140.1,140.09,14.7785259]
[1745110799505,11.11844438,140.1,140.08,49.25853802]
[1745110799706,11.11844438,140.1,140.08,56.89879567]
[1745110799887,22.23688877,140.12,140.09,7.64025765]
[1745110801106,29.75567251,140.12,140.09,7.64025765]
[1745110801801,29.75567251,140.12,140.09,14.7784128]
[1745110802503,29.75567251,140.12,140.08,49.25855538]
[1745110802898,18.64964886,140.11,140.06,7.64025765]
[1745110803490,18.64964886,140.11,140.07,14.77939167]
[1745110803810,18.64964886,140.11,140.08,7.64025765]
[1745110804104,18.64964886,140.12,140.07,7.13913402]
[1745110804305,18.64964886,140.12,140.09,7.64025765]
[1745110804509,18.64964886,140.12,140.08,7.64025765]
[1745110805495,18.64964886,140.12,140.08,14.7789094]
[1745110806099,18.64964886,140.12,140.08,7.13865175]
[1745110806295,18.64964886,140.12,140.08,14.7789094]
[1745110806500,18.64964886,140.14,140.08,14.7789094]
[1745110806805,18.64964886,140.14,140.09,7.64025765]
[1745110807194,18.64964886,140.14,140.09,14.77841753]
[1745110807587,18.64964886,140.12,140.09,14.77841753]
[1745110807789,18.64964886,140.12,140.09,7.13815988]
[1745110807985,18.64964886,140.12,140.09,7.64025765]
[1745110809313,18.64964886,140.12,140.09,14.77848505]
[1745110815721,18.64964886,140.12,140.09,7.64025765]
[1745110816239,18.64964886,140.12,140.09,14.77845036]
[1745110817433,18.64964886,140.12,140.08,22.7385812]
[1745110817602,18.64964886,140.12,140.09,7.64025765]
[1745110818924,18.64964886,140.12,140.08,22.7385812]
[1745110819126,18.64964886,140.12,140.08,30.37883885]
[1745110822624,18.64964886,140.14,140.08,30.37883885]
[1745110823527,1.86973394,140.13,140.08,30.37883885]
[1745110823828,18.64964886,140.12,140.08,30.37883885]
[1745110828737,18.64964886,140.12,140.08,22.7385812]
[1745110830130,60.26182052,140.12,140.04,23.24025765]
[1745110830333,61.77382052,140.12,140.04,23.24025765]
[1745110830632,61.77382052,140.12,140.06,7.64025765]
[1745110830833,61.77382052,140.12,140.07,7.64025765]
[1745110836637,61.77382052,140.12,140.06,15.18]
[1745110836950,61.77382052,140.12,140.07,7.64025765]
[1745110837164,61.77382052,140.12,140.06,15.18]
[1745110837165,69.41407817,140.12,140.06,15.18]
[1745110837358,69.41407817,140.12,140.06,7.64025765]
[1745110837750,61.77382052,140.12,140.07,7.64025765]
[1745110839675,1.86973394,140.11,140.07,7.64025765]
[1745110846275,1.6912836,140.11,140.07,7.64025765]
[1745110850478,1.6912836,140.11,140.06,7.64025765]
[1745110851073,1.6912836,140.11,140.05,7.14030703]
[1745110851277,9.33154125,140.11,140.05,14.78056468]
[1745110851784,1.6912836,140.11,140.06,7.64025765]
[1745110854183,69.41407817,140.12,140.06,14.78004747]
[1745110855281,1.6912836,140.11,140.06,14.78004747]
[1745110856685,1.6912836,140.11,140.06,7.64025765]
[1745110856983,1.6912836,140.11,140.06,14.78004095]
[1745110859081,1.6912836,140.11,140.06,7.64025765]
[1745110859586,1.6912836,140.11,140.05,7.64025765]
[1745110860688,1.6912836,140.11,140.05,14.78017329]
[1745110861387,18.64964886,140.1,140.05,7.64025765]
[1745110861585,18.64964886,140.1,140.04,29.96085335]
[1745110863393,18.64964886,140.1,140.05,7.64025765]
[1745110863986,18.64964886,140.1,140.04,22.3205957]
[1745110864291,14.02535765,140.09,140.03,40.78135787]
[1745110864695,6.3851,140.09,140.03,40.78135787]
[1745110864993,6.3851,140.09,140.04,7.64025765]
[1745110867575,47.99727166,140.09,140.04,7.64025765]
[1745110870478,67.90207817,140.08,140.02,7.64025765]
[1745110871378,1.6912836,140.07,140.02,7.64025765]
[1745110872977,9.33154125,140.07,140.01,14.81255023]
[1745110873383,60.26182052,140.06,140.01,7.67025765]
[1745110875191,60.26182052,140.06,140.02,7.64025765]
[1745110875401,1.6912836,140.07,140.04,7.64025765]
[1745110876299,1.6912836,140.07,140.04,14.78099526]
[1745110877100,1.6912836,140.07,140.04,7.64025765]
[1745110879100,18.64964886,140.06,140.03,7.64025765]
[1745110879601,18.64964886,140.06,140.04,7.64025765]
[1745110879803,1.6912836,140.07,140.04,7.64025765]
[1745110880790,1.6912836,140.07,140.04,14.78067335]
[1745110881499,1.6912836,140.07,140.04,7.64025765]
[1745110881800,1.6912836,140.07,140.04,14.78090886]
[1745110883096,1.6912836,140.07,140.04,7.14065121]
[1745110884109,1.6912836,140.07,140.04,14.78090886]
[1745110884905,1.6912836,140.07,140.03,14.78138785]
[1745110885802,1.6912836,140.07,140.04,14.78066398]
[1745110886107,1.6912836,140.07,140.05,7.64025765]
[1745110886490,18.64964886,140.09,140.05,7.64025765]
[1745110887395,18.64964886,140.09,140.05,14.78051575]
[1745110887599,1.6912836,140.08,140.05,14.78051575]
[1745110887794,0.063,140.16,140.1,26.0]
[1745110887994,0.063,140.16,140.15,7.64025765]
[1745110890722,0.063,140.16,140.15,14.77546992]
[1745110891702,0.063,140.16,140.15,45.33650052]
[1745110891908,0.063,140.16,140.15,14.77546992]
[1745110892215,0.063,140.16,140.15,45.33650052]
[1745110892417,0.063,140.18,140.17,26.0]
[1745110892622,0.063,140.18,140.17,48.48025765]
[1745110893515,0.063,140.18,140.17,55.61445184]
[1745110893712,0.063,140.18,140.17,57.22485184]
[1745110894028,0.063,140.24,140.23,7.64025765]
[1745110895402,0.063,140.24,140.23,14.77139934]
[1745110897107,0.063,140.24,140.23,40.77139934]
[1745110897900,0.063,140.25,140.23,45.33242994]
[1745110898115,0.063,140.25,140.24,64.20128825]
[1745110898608,0.063,140.25,140.24,33.64025765]
[1745110899229,0.063,140.25,140.24,40.77089085]
[1745110901030,0.063,140.25,140.24,33.64025765]
[1745110901331,18.71264886,140.25,140.21,7.64025765]
[1745110901907,18.71264886,140.25,140.22,7.64025765]
[1745110902427,18.71264886,140.25,140.2,26.0]
[1745110902618,18.71264886,140.25,140.22,7.64025765]
[1745110903029,18.71264886,140.25,140.21,7.64025765]
[1745110903408,18.71264886,140.25,140.2,7.64025765]
[1745110904019,26.35290651,140.25,140.19,55.45327069]
[1745110904630,41.61217166,140.24,140.19,14.68]
[1745110904829,26.35290651,140.25,140.12,7.13673993]
[1745110904830,18.64964886,140.2,140.12,7.13673993]
[1745110905008,18.64964886,140.2,140.15,7.64025765]
[1745110905209,67.90207817,140.2,140.15,7.64025765]
[1745110905712,60.26182052,140.2,140.15,7.64025765]
[1745110905913,60.26182052,140.2,140.16,7.64025765]
[1745110906120,60.26182052,140.2,140.17,7.64025765]
[1745110906317,18.64964886,140.23,140.19,7.64025765]
[1745110906627,18.64964886,140.23,140.2,7.64025765]
[1745110907234,18.64964886,140.23,140.19,7.64025765]
[1745110909328,26.28990651,140.23,140.17,40.77432739]
[1745110909519,18.64964886,140.21,140.17,26.0]
[1745110909722,60.26182052,140.21,140.16,7.64025765]
[1745110910826,60.26182052,140.21,140.16,14.77480513]
[1745110911227,60.26182052,140.21,140.17,11.92491328]
[1745110912135,60.26182052,140.21,140.17,19.05904698]
[1745110914033,60.26182052,140.21,140.17,11.92491328]
[1745110914238,60.26182052,140.21,140.16,11.92491328]
[1745110914617,41.61217166,140.2,140.15,11.92491328]
[1745110914840,18.64964886,140.18,140.13,26.60491328]
[1745110915338,18.64964886,140.18,140.14,11.92491328]
[1745110915530,18.64964886,140.18,140.15,11.92491328]
[1745110915733,18.64964886,140.18,140.14,11.92491328]
[1745110916634,18.64964886,140.18,140.15,11.92491328]
[1745110917744,18.64964886,140.18,140.15,19.06000361]
[1745110921021,18.64964886,140.18,140.16,11.92491328]
[1745110921222,18.64964886,140.19,140.17,11.92491328]
[1745110924353,18.64964886,140.19,140.16,11.92491328]
[1745110928346,18.64964886,140.19,140.16,19.05955131]
[1745110928747,18.64964886,140.19,140.14,7.13572142]
[1745110928950,18.64964886,140.19,140.15,11.92491328]
[1745110930963,18.64964886,140.19,140.15,19.05962326]
[1745110931147,18.64964886,140.19,140.15,14.7685029]
[1745110934449,18.64964886,140.19,140.16,7.63379292]
[1745110936363,18.64964886,140.19,140.16,14.76830839]
[1745110944468,18.64964886,140.19,140.14,7.13572142]
[1745110944654,18.64964886,140.19,140.16,7.63379292]
[1745110945468,18.64964886,140.19,140.16,14.76841188]
[1745110948563,18.64964886,140.19,140.15,14.76885511]
[1745110948756,18.64964886,140.19,140.12,17.84071571]
[1745110948757,18.64964886,140.16,140.12,14.77033124]
[1745110948958,18.64964886,140.16,140.12,7.13653832]
[1745110950472,18.64964886,140.16,140.12,14.77033124]
[1745110951979,18.64964886,140.16,140.11,14.77087136]
[1745110952465,18.64964886,140.16,140.12,7.63379292]
[1745110953675,18.64964886,140.16,140.12,14.77040657]
[1745110956677,26.28344178,140.16,140.11,7.63379292]
[1745110957978,26.28344178,140.16,140.11,14.77100496]
[1745110960774,26.28344178,140.16,140.11,7.63379292]
[1745110961774,18.64964886,140.17,140.11,7.63379292]
[1745110961976,18.64964886,140.15,140.11,14.77098432]
[1745110962989,26.28344178,140.17,140.12,7.63379292]
[1745110965491,41.61217166,140.21,140.15,7.63379292]
[1745110965677,18.64964886,140.19,140.17,7.63379292]
[1745110970188,18.64964886,140.19,140.16,14.76831673]
[1745110972592,18.64964886,140.2,140.16,14.76831673]
[1745110972975,18.64964886,140.2,140.17,7.63379292]
[1745110974186,18.64964886,140.2,140.16,14.76831673]
[1745110975688,18.64964886,140.2,140.16,7.13452381]
[1745110981718,0.063,140.25,140.23,26.0]
[1745110981882,0.063,140.26,140.2,6.4668]
[1745110981883,0.063,140.3,140.27,26.0]
[1745110982082,0.063,140.3,140.29,7.63379292]
[1745110983283,0.063,140.3,140.29,14.76188472]
[1745110984403,0.063,140.3,140.29,29.10188472]
[1745110984699,0.063,140.3,140.29,32.60725765]
[1745110987180,0.063,140.3,140.27,40.32]
[1745110987408,0.063,140.3,140.27,55.0827585]
[1745110988090,0.063,140.3,140.27,47.44896558]
[1745110988291,0.063,140.3,140.28,7.63379292]
[1745110989394,0.063,140.3,140.29,7.63379292]
[1745110990392,0.063,140.3,140.29,14.76188472]
[1745110992904,41.61217166,140.35,140.29,40.76188472]
[1745110993087,41.61217166,140.35,140.3,7.63379292]
[1745110993292,0.03,140.36,140.3,23.79383676]
[1745110993489,0.03,140.36,140.35,11.89691838]
[1745110995294,0.03,140.36,140.33,11.89691838]
[1745110995493,0.03,140.36,140.32,26.0]
[1745110995795,0.03,140.36,140.32,37.89691838]
[1745110997715,0.03,140.36,140.31,7.12658709]
[1745110997905,0.03,140.36,140.32,11.89691838]
[1745111005214,0.03,140.36,140.32,19.02329705]
[1745111005413,0.03,140.36,140.34,11.89691838]
[1745111005614,0.03,140.36,140.35,11.89691838]
[1745111007204,0.03,140.36,140.34,11.89691838]
[1745111007725,0.03,140.36,140.33,37.89691838]
[1745111008029,30.57656724,140.36,140.31,33.82381614]
[1745111008414,18.67964886,140.36,140.31,33.82381614]
[1745111009929,18.67964886,140.36,140.32,11.89691838]
[1745111011409,18.67964886,140.36,140.32,19.02316764]
[1745111015129,0.03,140.36,140.32,14.74081136]
[1745111020635,0.03,140.36,140.34,7.6145621]
[1745111023141,0.03,140.36,140.34,14.73989636]
[1745111026046,0.03,140.36,140.34,7.6145621]
[1745111026435,0.03,140.36,140.34,14.74006233]
[1745111034849,0.03,140.36,140.34,7.12550023]
[1745111035851,18.67964886,140.36,140.33,14.56]
[1745111036149,18.64964886,140.34,140.3,7.6145621]
[1745111036349,18.64964886,140.34,140.3,33.6145621]
[1745111037369,14.0667621,140.36,140.3,33.6145621]
[1745111038463,14.0667621,140.36,140.31,7.12707576]
[1745111039150,14.0667621,140.36,140.31,14.74163786]
[1745111041261,6.4522,140.36,140.31,14.74163786]
[1745111041565,0.03,140.36,140.34,7.6145621]
[1745111042235,0.03,140.36,140.34,33.6145621]
[1745111042652,0.03,140.36,140.34,26.0]
[1745111042849,0.03,140.36,140.33,7.6145621]
[1745111043433,0.03,140.36,140.33,14.74019795]
[1745111048966,0.03,140.36,140.34,7.6145621]
[1745111049155,0.03,140.36,140.34,40.7397523]
[1745111049342,0.03,140.36,140.34,39.7397523]
[1745111050638,0.03,140.36,140.35,7.6145621]
[1745111052067,0.03,140.36,140.35,14.73960663]
[1745111053658,0.063,140.39,140.38,26.0]
[1745111053851,0.063,140.39,140.38,47.9745621]
[1745111055361,0.063,140.39,140.38,55.09808396]
[1745111056867,0.063,140.39,140.38,14.36]
[1745111057371,0.063,140.39,140.36,40.73893396]
[1745111057565,0.063,140.39,140.36,26.0]
[1745111057870,7.6145621,140.38,140.34,33.12540951]
[1745111058059,26.26421096,140.37,140.32,29.10091387]
[1745111058265,7.6145621,140.36,140.32,21.48635177]
[1745111058461,7.6145621,140.34,140.32,14.36]
[1745111058656,26.26421096,140.33,140.28,14.74273689]
[1745111058854,7.6145621,140.32,140.27,14.74345615]
[1745111059056,7.6145621,140.31,140.26,14.36]
[1745111059263,7.6145621,140.3,140.26,14.36]
[1745111059462,32.46351096,140.31,140.26,21.48941626]
[1745111059774,24.84894886,140.31,140.26,55.10397836]
[1745111060070,24.84894886,140.31,140.26,29.10397836]
[1745111060251,32.46351096,140.31,140.27,26.0]
[1745111061362,6.2192,140.34,140.29,14.7426539]
[1745111061687,9.1557621,140.35,140.3,7.6145621]
[1745111062358,26.26421096,140.36,140.31,7.6145621]
[1745111062561,18.64964886,140.36,140.31,7.6145621]
[1745111062770,0.063,140.39,140.34,7.6145621]
[1745111062968,0.063,140.39,140.35,7.6145621]
[1745111063170,0.063,140.39,140.34,7.6145621]
[1745111063476,18.71264886,140.39,140.35,7.12504453]
[1745111063649,0.063,140.39,140.36,7.6145621]
[1745111064461,18.64964886,140.37,140.33,26.0]
[1745111064664,7.6145621,140.36,140.31,14.74148891]
[1745111064872,41.61217166,140.38,140.31,14.74148891]
[1745111065068,49.22673376,140.38,140.32,7.6145621]
[1745111065280,53.50947882,140.38,140.32,11.89730716]
[1745111065477,11.89730716,140.37,140.32,19.02352821]
[1745111065854,11.89730716,140.37,140.32,7.12622105]
[1745111066377,11.89730716,140.37,140.32,19.02352821]
[1745111068362,41.61217166,140.38,140.32,19.02352821]
[1745111068772,11.89730716,140.37,140.32,19.02352821]
[1745111074381,11.89730716,140.36,140.32,7.12622105]
[1745111075096,11.89730716,140.35,140.31,26.0]
[1745111075267,18.64964886,140.33,140.3,14.36]
[1745111075459,30.54695602,140.33,140.29,26.063]
[1745111077066,30.54695602,140.33,140.29,0.063]
[1745111079804,18.64964886,140.33,140.29,0.063]
[1745111081598,18.64964886,140.33,140.29,19.08838232]
[1745111082199,18.64964886,140.33,140.29,0.063]
[1745111082424,30.54695602,140.33,140.29,0.063]
[1745111083481,18.64964886,140.33,140.29,0.063]
[1745111086585,26.26821555,140.33,140.29,0.063]
[1745111089706,18.64964886,140.33,140.29,0.063]
[1745111097424,26.26821555,140.33,140.29,0.063]
[1745111100516,18.64964886,140.35,140.3,7.61856669]
[1745111100815,18.64964886,140.35,140.31,7.61856669]
[1745111101901,18.64964886,140.35,140.3,7.61856669]
[1745111102217,18.64964886,140.35,140.31,7.61856669]
[1745111102393,41.61217166,140.36,140.32,7.61856669]
[1745111102594,7.61856669,140.37,140.32,7.61856669]
[1745111103297,7.61856669,140.37,140.31,33.61856669]
[1745111103920,7.61856669,140.34,140.29,0.063]
[1745111104109,26.26821555,140.32,140.29,0.063]
[1745111104802,18.64964886,140.3,140.29,0.063]
[1745111105003,26.26821555,140.3,140.29,0.063]
[1745111114109,47.67821555,140.3,140.25,0.063]
[1745111114311,26.26821555,140.26,140.25,0.063]
[1745111124431,18.64964886,140.26,140.25,0.063]
[1745111127226,18.64964886,140.27,140.25,0.063]
[1745111127426,18.64964886,140.29,140.25,0.063]
[1745111127635,18.64964886,140.29,140.25,7.68156669]
[1745111128046,18.64964886,140.29,140.25,0.063]
[1745111128553,18.64964886,140.29,140.25,7.19312477]
[1745111128847,18.64964886,140.29,140.25,14.81169146]
[1745111129848,18.64964886,140.29,140.25,7.19312477]
[1745111130450,18.64964886,140.29,140.25,14.81169146]
[1745111130941,18.64964886,140.29,140.25,7.19312477]
[1745111133749,26.26821555,140.29,140.25,0.063]
[1745111141567,7.61856669,140.28,140.25,0.063]
[1745111141946,18.64964886,140.26,140.25,0.063]
[1745111146559,7.61856669,140.26,140.25,0.063]
[1745111162695,18.64964886,140.27,140.25,0.063]
[1745111162858,26.26821555,140.27,140.25,0.063]
[1745111164061,7.61856669,140.26,140.25,0.063]
[1745111167586,18.64964886,140.27,140.25,0.063]
[1745111167793,7.61856669,140.26,140.25,0.063]
[1745111169078,18.64964886,140.31,140.25,7.68156669]
[1745111169288,18.64964886,140.31,140.27,7.61856669]
[1745111169474,26.26821555,140.33,140.27,7.61856669]
[1745111169674,7.61856669,140.33,140.28,7.61856669]
[1745111169885,90.01856669,140.34,140.29,7.1280918]
[1745111170184,18.64964886,140.33,140.29,7.1280918]
[1745111170370,26.26821555,140.33,140.29,7.1280918]
[1745111170570,18.64964886,140.33,140.29,7.1280918]
[1745111170769,26.26821555,140.33,140.29,7.1280918]
[1745111171383,18.64964886,140.33,140.29,7.1280918]
[1745111171689,26.26821555,140.33,140.29,7.1280918]
[1745111173086,26.26821555,140.33,140.28,7.12837491]
[1745111175791,7.61856669,140.32,140.28,7.12837491]
[1745111175986,7.61856669,140.32,140.27,14.74744402]
[1745111176194,7.61856669,140.31,140.25,7.68156669]
[1745111176396,18.64964886,140.32,140.25,7.68156669]